bitfinex-derivatives/quotes_BTCF0:USTF0_20241110
["timestamp","ask_amount","ask_price","bid_price","bid_amount"]
[1731264065933,0.2335,80954.0,80951.0,0.0617]
[1731264066131,0.1153,80954.0,80951.0,0.0617]
[1731264066436,0.1153,80954.0,80945.0,0.00010192]
[1731264066437,0.061702,80949.0,80945.0,0.06180692]
[1731264066625,0.1153,80954.0,80948.0,0.061702]
[1731264066626,0.061699,80953.0,80948.0,0.061702]
[1731264067231,0.1153,80954.0,80945.0,0.00010192]
[1731264067431,0.061704,80947.0,80945.0,0.00010192]
[1731264067634,0.3608,80946.0,80945.0,0.00010192]
[1731264067832,0.7314,80946.0,80945.0,0.00010192]
[1731264068026,0.76930594,80946.0,80945.0,0.00010192]
[1731264068334,0.061704,80947.0,80945.0,0.00010192]
[1731264068733,0.3616,80953.0,80945.0,0.00010192]
[1731264069029,0.1153,80954.0,80945.0,0.00010192]
[1731264069030,0.1153,80954.0,80945.0,0.03881015]
[1731264069335,0.1153,80954.0,80945.0,0.00010192]
[1731264069533,0.1153,80954.0,80948.0,0.061702]
[1731264069730,0.10565516,80953.0,80948.0,0.061702]
[1731264069929,0.10565516,80953.0,80945.0,0.00010192]
[1731264069930,0.061701,80951.0,80946.0,0.061704]
[1731264070133,0.3608,80948.0,80945.0,0.0386366]
[1731264070330,0.3608,80948.0,80945.0,0.00010192]
[1731264070725,0.061703,80947.0,80945.0,0.00010192]
[1731264072034,0.061703,80947.0,80945.0,0.03880491]
[1731264072639,0.03790038,80946.0,80945.0,0.03880491]
[1731264074042,0.061701,80951.0,80945.0,0.03880491]
[1731264074340,0.10565516,80953.0,80945.0,0.03880491]
[1731264074341,0.09960039,80950.0,80945.0,0.03880491]
[1731264074544,0.03789939,80949.0,80945.0,0.03880491]
[1731264075343,0.3616,80954.0,80945.0,0.03880491]
[1731264075531,0.3608,80954.0,80953.0,0.061699]
[1731264075834,0.3608,80964.0,80959.0,0.061694]
[1731264076044,0.3608,80964.0,80958.0,0.061694]
[1731264076341,0.3608,80964.0,80960.0,0.061693]
[1731264076342,0.03789665,80963.0,80960.0,0.061693]
[1731264076529,0.0378966,80962.0,80960.0,0.061693]
[1731264076727,0.0378966,80961.0,80960.0,0.061693]
[1731264076931,0.0378966,80961.0,80952.0,0.061699]
[1731264077130,0.10565516,80953.0,80950.0,0.1208]
[1731264077327,0.10565516,80953.0,80952.0,0.3608]
[1731264078743,0.03789661,80953.0,80952.0,0.3608]
[1731264078934,0.061695,80959.0,80952.0,0.422499]
[1731264079234,0.03789604,80958.0,80952.0,0.422499]
[1731264079435,0.09959204,80957.0,80952.0,0.3608]
[1731264079641,0.03789604,80956.0,80952.0,0.3608]
[1731264079941,0.03789604,80956.0,80954.0,0.061698]
[1731264080143,0.061696,80957.0,80954.0,0.061698]
[1731264081737,0.061697,80956.0,80954.0,0.061698]
[1731264082554,0.061698,80955.0,80952.0,0.3608]
[1731264083040,0.0617,80952.0,80950.0,0.03998528]
[1731264083237,0.0617,80952.0,80945.0,0.00010192]
[1731264083238,0.061703,80947.0,80945.0,0.00010192]
[1731264083435,0.061703,80947.0,80945.0,0.03891613]
[1731264084458,0.422503,80947.0,80945.0,0.03891613]
[1731264084637,0.10565516,80952.0,80945.0,0.03891613]
[1731264084837,0.061701,80951.0,80949.0,0.061702]
[1731264085349,0.10565516,80952.0,80946.0,0.1236]
[1731264085541,0.061703,80948.0,80946.0,0.1236]
[1731264085745,0.061703,80948.0,80946.0,0.185304]
[1731264088048,0.03790072,80947.0,80946.0,0.185304]
[1731264088446,0.03790072,80947.0,80924.0,0.25357516]
[1731264088447,0.061727,80917.0,80905.0,0.1234]
[1731264088656,0.14355588,80916.0,80915.0,0.04138683]
[1731264088949,0.03791527,80916.0,80915.0,0.00251]
[1731264089450,0.03800354,80916.0,80915.0,0.00251]
[1731264090851,0.03800354,80916.0,80915.0,0.12881]
[1731264091762,0.03800354,80916.0,80915.0,0.16868466]
[1731264092255,0.03800354,80916.0,80915.0,0.04238466]
[1731264093449,0.03800354,80916.0,80915.0,0.03987466]
[1731264093642,0.09973054,80916.0,80913.0,0.061729]
[1731264093857,0.03791527,80915.0,80913.0,0.061729]
[1731264094057,0.03791527,80914.0,80913.0,0.061729]
[1731264094359,0.03791527,80914.0,80909.0,0.3608]
[1731264094544,0.03791209,80913.0,80909.0,0.46645516]
[1731264094856,0.03791159,80912.0,80911.0,0.061731]
[1731264095149,8.827e-05,80916.0,80909.0,0.3608]
[1731264095854,8.827e-05,80916.0,80909.0,0.46203125]
[1731264096450,0.06181527,80916.0,80909.0,0.46203125]
[1731264096649,0.061731,80911.0,80909.0,0.03949925]
[1731264096852,0.3608,80910.0,80895.0,0.3608]
[1731264097059,0.3608,80910.0,80890.0,0.00013097]
[1731264097060,0.061745,80893.0,80890.0,0.00013097]
[1731264097357,0.3608,80903.0,80891.0,0.3608]
[1731264097558,0.1231,80910.0,80894.0,0.061744]
[1731264097763,0.06174,80900.0,80895.0,0.1181]
[1731264098665,0.061742,80897.0,80895.0,0.1181]
[1731264098870,0.061745,80893.0,80891.0,0.3608]
[1731264099159,0.061746,80891.0,80890.0,0.0310297]
[1731264099347,0.422546,80891.0,80890.0,0.0310297]
[1731264100852,0.061752,80884.0,80883.0,0.00185456]
[1731264101057,0.52820716,80884.0,80883.0,0.00185456]
[1731264101863,0.52834834,80884.0,80883.0,0.00185456]
[1731264102064,0.52834834,80884.0,80883.0,0.03279626]
[1731264102257,0.52834834,80884.0,80883.0,0.00185456]
[1731264103350,0.42269318,80884.0,80883.0,0.00185456]
[1731264104961,0.00014118,80884.0,80883.0,0.00185456]
[1731264105265,0.00014118,80884.0,80883.0,0.24205456]
[1731264107960,0.36094118,80884.0,80883.0,0.00185456]
[1731264110065,0.00014118,80884.0,80883.0,0.00185456]
[1731264112071,0.06189318,80884.0,80883.0,0.00185456]
[1731264113459,0.06185318,80884.0,80883.0,0.00185456]
[1731264114873,0.06181318,80884.0,80883.0,0.00185456]
[1731264115969,0.06181318,80884.0,80872.0,0.1219]
[1731264115970,0.16742834,80884.0,80872.0,0.1219]
[1731264116266,0.16742834,80884.0,80872.0,0.1532016]
[1731264116267,0.10565516,80873.0,80872.0,0.1532016]
[1731264116566,0.061759,80874.0,80872.0,0.1532016]
[1731264116874,0.061759,80874.0,80872.0,0.2149616]
[1731264118264,0.061719,80874.0,80872.0,0.2149616]
[1731264119173,0.3608,80877.0,80875.0,0.061758]
[1731264119375,2.118e-05,80884.0,80872.0,0.1532016]
[1731264119863,0.061714,80881.0,80879.0,0.061755]
[1731264120068,0.06177318,80884.0,80872.0,0.1532016]
[1731264120267,0.10565516,80880.0,80874.0,0.061759]
[1731264121267,2.118e-05,80884.0,80872.0,0.1532016]
[1731264121464,2.118e-05,80884.0,80873.0,0.06176]
[1731264121668,0.46645516,80899.0,80878.0,0.46645516]
[1731264121876,0.061742,80896.0,80892.0,0.061745]
[1731264122066,0.061742,80896.0,80893.0,0.1204]
[1731264122266,0.46729516,80899.0,80893.0,0.1204]
[1731264122468,0.061741,80898.0,80897.0,0.061741]
[1731264122677,0.061743,80895.0,80893.0,0.1204]
[1731264123475,0.061743,80895.0,80893.0,0.15212956]
[1731264124675,0.061743,80895.0,80893.0,0.21387356]
[1731264124871,9.171e-05,80898.0,80893.0,0.15212956]
[1731264125072,0.06183271,80898.0,80896.0,0.061742]
[1731264126779,0.061742,80897.0,80896.0,0.061742]
[1731264128074,0.061743,80896.0,80893.0,0.15212956]
[1731264128478,9.171e-05,80898.0,80893.0,0.15212956]
[1731264128677,0.061744,80894.0,80893.0,0.15212956]
[1731264129681,0.16739916,80894.0,80893.0,0.03172956]
[1731264129876,0.16739916,80894.0,80887.0,0.1138]
[1731264130069,0.061745,80893.0,80890.0,0.061747]
[1731264130270,0.061746,80891.0,80890.0,0.061747]
[1731264131570,0.422546,80891.0,80890.0,0.061747]
[1731264131881,0.061748,80889.0,80887.0,0.1138]
[1731264132372,0.061748,80889.0,80887.0,0.175549]
[1731264132568,0.061749,80887.0,80886.0,0.03116897]
[1731264132776,0.061753,80882.0,80874.0,0.1175]
[1731264132979,0.3608,80891.0,80879.0,0.061755]
[1731264132980,0.061754,80881.0,80879.0,0.061755]
[1731264133373,0.061755,80880.0,80879.0,0.061755]
[1731264134068,0.10565516,80884.0,80874.0,0.1175]
[1731264134379,0.10565516,80884.0,80876.0,0.061757]
[1731264134380,0.061757,80878.0,80876.0,0.061757]
[1731264135175,0.061717,80878.0,80877.0,0.061757]
[1731264135375,0.061717,80878.0,80874.0,0.1175]
[1731264135376,0.3608,80882.0,80874.0,0.1175]
[1731264135679,0.061757,80877.0,80874.0,0.1175]
[1731264136577,0.3608,80882.0,80881.0,0.061754]
[1731264136776,0.3608,80882.0,80874.0,0.1175]
[1731264136777,0.061755,80880.0,80875.0,0.061758]
[1731264136975,0.061755,80879.0,80875.0,0.061758]
[1731264137879,0.3608,80889.0,80874.0,0.1175]
[1731264138088,0.061754,80882.0,80879.0,0.061755]
[1731264138282,0.3608,80889.0,80875.0,0.061758]
[1731264138488,0.3608,80889.0,80878.0,0.061756]
[1731264139184,0.061752,80884.0,80878.0,0.061756]
[1731264140990,0.061754,80882.0,80878.0,0.061756]
[1731264141789,0.3608,80888.0,80878.0,0.061756]
[1731264142093,0.061754,80881.0,80879.0,0.061755]
[1731264142390,0.04432284,80887.0,80879.0,0.061755]
[1731264142589,0.10607284,80887.0,80882.0,0.061753]
[1731264142892,0.06175,80887.0,80882.0,0.061753]
[1731264143081,0.3608,80888.0,80882.0,0.061753]
[1731264143988,0.3608,80888.0,80874.0,0.1175]
[1731264144391,0.3608,80888.0,80878.0,0.061756]
[1731264144592,0.10565516,80890.0,80874.0,0.1175]
[1731264144788,0.10565516,80890.0,80880.0,0.061754]
[1731264145490,0.10565516,80890.0,80880.0,0.061755]
[1731264145788,0.04432049,80893.0,80891.0,0.061746]
[1731264145989,0.04432049,80897.0,80895.0,0.061743]
[1731264146199,0.04432049,80897.0,80887.0,0.46709516]
[1731264146200,0.04432049,80897.0,80889.0,0.061747]
[1731264146492,0.10565516,80893.0,80883.0,0.061752]
[1731264147390,0.46645516,80893.0,80883.0,0.061752]
[1731264147588,0.10565516,80886.0,80883.0,0.061752]
[1731264148585,0.23095516,80892.0,80876.0,0.3608]
[1731264148788,0.23095516,80892.0,80877.0,0.3608]
[1731264149690,0.23095516,80892.0,80883.0,0.061752]
[1731264150283,0.23095516,80892.0,80877.0,0.3608]
[1731264150883,0.23095516,80892.0,80883.0,0.061752]
[1731264151285,0.29270116,80892.0,80883.0,0.061752]
[1731264151991,0.23095516,80892.0,80877.0,0.3608]
[1731264152492,0.23095516,80892.0,80884.0,0.061751]
[1731264152794,0.23095516,80892.0,80877.0,0.3608]
[1731264152795,0.23095516,80892.0,80886.0,0.06175]
[1731264152992,0.23095516,80892.0,80877.0,0.3608]
[1731264152993,0.23095516,80892.0,80890.0,0.061747]
[1731264153595,0.3608,80893.0,80892.0,0.061745]
[1731264153799,0.40511938,80893.0,80884.0,0.34820571]
[1731264153986,0.3608,80893.0,80892.0,0.061745]
[1731264154901,9.171e-05,80898.0,80884.0,0.34820571]
[1731264155101,9.171e-05,80898.0,80897.0,0.061742]
[1731264155401,9.171e-05,80898.0,80884.0,0.34820571]
[1731264155700,9.171e-05,80898.0,80895.0,0.061743]
[1731264156000,9.171e-05,80898.0,80896.0,0.061742]
[1731264157485,0.10574687,80898.0,80896.0,0.061742]
[1731264157898,0.10574687,80898.0,80896.0,0.10125417]
[1731264159000,0.15006313,80898.0,80896.0,0.10125417]
[1731264159596,0.04431626,80897.0,80896.0,0.10125417]
[1731264159789,0.10574687,80898.0,80896.0,0.10125417]
[1731264159997,9.171e-05,80898.0,80896.0,0.10125417]
[1731264160690,9.171e-05,80898.0,80897.0,0.2391]
[1731264162399,9.171e-05,80898.0,80897.0,0.5999]
[1731264162599,0.04430651,80917.0,80909.0,0.061732]
[1731264162793,0.04430651,80917.0,80916.0,0.061727]
[1731264162994,0.04430651,80917.0,80912.0,0.3608]
[1731264162995,0.04430651,80924.0,80921.0,0.061723]
[1731264163190,0.04430651,80924.0,80912.0,0.3608]
[1731264163191,0.04430651,80924.0,80922.0,0.061722]
[1731264163404,0.10565516,80925.0,80922.0,0.061722]
[1731264163597,0.10565516,80925.0,80923.0,0.061722]
[1731264164303,0.10565516,80925.0,80912.0,0.3608]
[1731264164304,0.16737516,80925.0,80916.0,0.061727]
[1731264164503,0.10565516,80917.0,80916.0,0.061727]
[1731264165605,0.10565516,80917.0,80910.0,0.1206]
[1731264165606,0.10565516,80917.0,80912.0,0.03927553]
[1731264165797,0.10565516,80913.0,80912.0,0.06173]
[1731264166294,0.10565516,80913.0,80904.0,0.3608]
[1731264166503,0.10565516,80905.0,80903.0,0.061737]
[1731264166701,0.3608,80908.0,80906.0,0.061734]
[1731264167301,0.061735,80906.0,80898.0,0.1255]
[1731264167501,0.3608,80908.0,80900.0,0.061739]
[1731264167703,0.061735,80906.0,80898.0,0.1255]
[1731264168497,0.3608,80908.0,80903.0,0.061737]
[1731264169615,0.422534,80908.0,80898.0,0.1255]
[1731264169802,0.061734,80907.0,80901.0,0.061738]
[1731264171399,0.3608,80908.0,80898.0,0.1255]
[1731264171611,0.25017516,80921.0,80898.0,0.1255]
[1731264171905,0.3608,80913.0,80900.0,0.3608]
[1731264172604,0.06173,80912.0,80906.0,0.061734]
[1731264173703,0.061726,80918.0,80913.0,0.061729]
[1731264173903,0.061726,80918.0,80915.0,0.061727]
[1731264174107,0.061726,80918.0,80916.0,0.2366]
[1731264174803,0.46729516,80922.0,80910.0,0.061731]
[1731264175005,0.3608,80911.0,80901.0,0.2371]
[1731264175203,0.10565516,80916.0,80901.0,0.2371]
[1731264175410,0.10565516,80916.0,80912.0,0.06173]
[1731264175710,0.16738216,80916.0,80912.0,0.06173]
[1731264175914,0.3608,80913.0,80906.0,0.061734]
[1731264176108,0.061733,80908.0,80906.0,0.061734]
[1731264176605,0.10565516,80910.0,80901.0,0.115]
[1731264176813,0.16739316,80902.0,80900.0,0.03850735]
[1731264177006,0.061744,80894.0,80891.0,0.244]
[1731264177202,0.3608,80906.0,80881.0,0.00064]
[1731264177203,0.061751,80885.0,80881.0,0.00064]
[1731264177399,0.16740616,80885.0,80876.0,0.061758]
[1731264177601,0.061751,80885.0,80877.0,0.3608]
[1731264178709,0.3608,80883.0,80877.0,0.3608]
[1731264178913,0.061753,80882.0,80880.0,0.04050261]
[1731264179615,0.061748,80889.0,80880.0,0.04050261]
[1731264179817,0.06175,80887.0,80880.0,0.04050261]
[1731264180012,0.06175,80886.0,80880.0,0.04050261]
[1731264180208,0.10565516,80891.0,80880.0,0.04050261]
[1731264180409,0.10565516,80891.0,80880.0,0.10225661]
[1731264180611,0.06175,80886.0,80880.0,0.10225661]
[1731264180808,0.10565516,80891.0,80880.0,0.04050261]
[1731264181008,0.061747,80891.0,80882.0,0.061753]
[1731264181209,0.061747,80890.0,80882.0,0.061753]
[1731264181523,0.061749,80888.0,80882.0,0.061753]
[1731264181709,0.061754,80882.0,80880.0,0.04050261]
[1731264182607,0.0443225,80884.0,80880.0,0.04050261]
[1731264182810,0.0443225,80884.0,80880.0,0.10225661]
[1731264183520,0.0443225,80884.0,80883.0,0.061752]
[1731264183716,0.0443225,80891.0,80890.0,0.061747]
[1731264184017,0.0443225,80902.0,80890.0,0.10565516]
[1731264184219,0.061734,80907.0,80898.0,0.061741]
[1731264184418,0.0443225,80913.0,80899.0,0.06174]
[1731264184419,0.061736,80905.0,80899.0,0.06174]
[1731264184717,0.061739,80901.0,80895.0,0.422543]
[1731264184920,0.0443225,80906.0,80891.0,0.2366]
[1731264185215,0.00185437,80919.0,80913.0,0.061729]
[1731264186622,0.00185437,80919.0,80917.0,0.061726]
[1731264187116,0.00185437,80919.0,80918.0,0.1263]
[1731264188215,0.00185437,80919.0,80918.0,0.4871]
[1731264188714,0.00185437,80919.0,80918.0,0.1263]
[1731264189113,0.00185437,80919.0,80917.0,0.061726]
[1731264191908,0.3608,80962.0,80918.0,0.77831572]
[1731264192118,0.0008,80952.0,80945.0,0.3608]
[1731264192618,0.10565516,80956.0,80937.0,0.14452]
[1731264193010,0.0617,80952.0,80946.0,0.01180431]
[1731264193217,0.10565516,80950.0,80946.0,0.01180431]
[1731264193422,0.03790081,80949.0,80946.0,0.01180431]
[1731264193615,0.0821876,80949.0,80946.0,0.07350831]
[1731264193917,0.03790081,80948.0,80946.0,0.07350831]
[1731264194119,0.04428679,80953.0,80930.0,0.10565516]
[1731264194120,0.3608,80947.0,80930.0,0.10565516]
[1731264194309,0.3608,80947.0,80908.0,0.3608]
[1731264194310,0.061717,80930.0,80917.0,0.061726]
[1731264194506,0.061721,80924.0,80923.0,0.03950902]
[1731264194715,0.061726,80918.0,80905.0,0.02471897]
[1731264194907,0.46645516,80917.0,80905.0,0.02471897]
[1731264195107,0.88151313,80917.0,80905.0,0.02471897]
[1731264195313,0.06173,80912.0,80905.0,0.02471897]
[1731264195519,0.06173,80912.0,80900.0,0.061739]
[1731264195715,0.06173,80912.0,80896.0,0.10565516]
[1731264195716,0.06173,80912.0,80901.0,0.061738]
[1731264196808,0.06173,80912.0,80896.0,0.10565516]
[1731264196809,0.04439367,80916.0,80905.0,0.061735]
[1731264197213,0.061729,80914.0,80905.0,0.061735]
[1731264198419,0.04440338,80916.0,80914.0,0.061729]
[1731264198614,0.04440338,80916.0,80908.0,0.061733]
[1731264199514,0.10613038,80916.0,80908.0,0.061733]
[1731264199715,0.10613038,80916.0,80910.0,0.061731]
[1731264199908,0.10613038,80916.0,80909.0,0.3608]
[1731264199909,9.57e-05,80916.0,80911.0,0.061731]
[1731264200927,9.57e-05,80916.0,80907.0,0.1256]
[1731264201120,9.57e-05,80916.0,80913.0,0.061729]
[1731264202518,9.57e-05,80916.0,80914.0,0.061728]
[1731264202715,9.57e-05,80916.0,80914.0,0.05032427]
[1731264203022,0.06173,80912.0,80907.0,0.061733]
[1731264203225,9.57e-05,80916.0,80906.0,0.03935742]
[1731264203421,9.57e-05,80916.0,80912.0,0.06173]
[1731264204315,0.061729,80914.0,80906.0,0.061735]
[1731264204516,0.061732,80910.0,80906.0,0.061735]
[1731264205012,0.0618227,80916.0,80900.0,0.1163]
[1731264205214,0.0618227,80916.0,80912.0,0.06173]
[1731264205830,9.57e-05,80916.0,80900.0,0.1163]
[1731264206026,0.061732,80910.0,80903.0,0.061737]
[1731264206526,9.57e-05,80916.0,80907.0,0.061734]
[1731264206730,0.422531,80911.0,80907.0,0.061734]
[1731264208125,0.3608,80912.0,80900.0,0.15587264]
[1731264208329,0.061734,80907.0,80902.0,0.061738]
[1731264208629,0.3608,80913.0,80902.0,0.061738]
[1731264208826,0.061734,80908.0,80902.0,0.061738]
[1731264209021,0.10565516,80911.0,80900.0,0.15587264]
[1731264209221,0.061738,80902.0,80900.0,0.03957264]
[1731264209532,0.061738,80902.0,80886.0,0.00012542]
[1731264209533,0.061743,80895.0,80888.0,0.061748]
[1731264209823,0.10565516,80905.0,80888.0,0.061748]
[1731264209824,0.061744,80894.0,80888.0,0.061748]
[1731264210022,0.3608,80899.0,80888.0,0.061748]
[1731264210224,0.061745,80893.0,80891.0,0.04123168]
[1731264210420,0.3608,80899.0,80891.0,0.04123168]
[1731264210720,0.061745,80892.0,80891.0,0.04123168]
[1731264211822,0.422541,80899.0,80895.0,0.061743]
[1731264212017,0.26589482,80912.0,80898.0,0.06174]
[1731264212018,0.061739,80901.0,80898.0,0.06174]
[1731264212228,0.061739,80900.0,80894.0,0.061743]
[1731264212427,0.3608,80907.0,80896.0,0.061742]
[1731264212620,0.061737,80904.0,80891.0,0.40203168]
[1731264212817,0.061732,80911.0,80899.0,0.10565516]
[1731264213018,0.00185482,80912.0,80899.0,0.10565516]
[1731264213322,0.00185482,80912.0,80899.0,0.06174]
[1731264213527,0.00185482,80912.0,80899.0,0.1218]
[1731264213733,0.06358482,80912.0,80904.0,0.061736]
[1731264214030,0.06358482,80912.0,80898.0,0.33754222]
[1731264214031,0.10565516,80911.0,80898.0,0.33754222]
[1731264214422,0.36265482,80912.0,80891.0,0.40203168]
[1731264214423,0.46645516,80905.0,80891.0,0.40203168]
[1731264214733,0.46645516,80905.0,80892.0,0.061745]
[1731264214734,0.061743,80896.0,80892.0,0.061745]
[1731264215132,0.061738,80902.0,80891.0,0.40203168]
[1731264215524,0.061738,80902.0,80899.0,0.3608]
[1731264215828,0.061738,80902.0,80891.0,0.40203168]
[1731264215829,0.061738,80902.0,80898.0,0.3608]
[1731264216825,0.061738,80902.0,80898.0,0.42254]
[1731264217031,0.061739,80901.0,80898.0,0.42254]
[1731264217226,0.061739,80901.0,80898.0,0.06174]
[1731264217533,0.061739,80900.0,80898.0,0.06174]
[1731264217732,0.061745,80892.0,80891.0,0.40203168]
[1731264217923,0.422545,80892.0,80891.0,0.04123168]
[1731264219123,0.422545,80892.0,80891.0,0.00185437]
[1731264219319,0.061749,80887.0,80883.0,0.1139]
[1731264220227,0.061749,80887.0,80886.0,0.03825325]
[1731264221435,0.3608,80905.0,80886.0,0.14390841]
[1731264221638,0.061745,80893.0,80891.0,0.061746]
[1731264222134,0.3608,80905.0,80886.0,0.14390841]
[1731264222526,0.3608,80897.0,80887.0,0.061749]
[1731264222725,0.061744,80894.0,80888.0,0.061748]
[1731264223131,0.3608,80897.0,80887.0,0.3608]
[1731264223437,0.06358582,80912.0,80907.0,0.061734]
[1731264223735,0.00185482,80912.0,80911.0,0.3608]
[1731264223935,0.10750998,80912.0,80911.0,0.3608]
[1731264224133,0.061731,80911.0,80909.0,0.3608]
[1731264224431,0.061737,80903.0,80902.0,0.30757614]
[1731264224827,0.061737,80903.0,80900.0,0.3608]
[1731264226034,0.061738,80902.0,80900.0,0.39963613]
[1731264228828,0.2348,80904.0,80891.0,0.3608]
[1731264229032,0.10565516,80895.0,80891.0,0.4008279]
[1731264229432,0.061745,80893.0,80891.0,0.4008279]
[1731264230234,0.10565516,80895.0,80886.0,0.00012542]
[1731264230235,0.061749,80887.0,80886.0,0.00012542]
[1731264230437,0.061749,80887.0,80886.0,0.0384024]
[1731264230636,0.061749,80887.0,80886.0,0.00012542]
[1731264230933,0.1060694,80887.0,80886.0,0.00012542]
[1731264235632,0.0443204,80895.0,80886.0,0.36092542]
[1731264235835,0.061749,80888.0,80886.0,0.36092542]
[1731264238447,0.16740416,80888.0,80886.0,0.36092542]
[1731264238637,0.061749,80888.0,80886.0,0.36092542]
[1731264238834,0.061745,80893.0,80886.0,0.36092542]
[1731264239034,0.061745,80893.0,80887.0,0.1237]
[1731264240339,0.061746,80891.0,80887.0,0.1237]
[1731264240845,0.061742,80897.0,80893.0,0.061744]
[1731264241145,0.061742,80897.0,80896.0,0.3608]
[1731264243250,0.10565516,80901.0,80896.0,0.03911728]
[1731264243458,0.10565516,80901.0,80891.0,0.061746]
[1731264243644,0.10565516,80901.0,80887.0,0.1237]
[1731264243840,0.10565516,80901.0,80897.0,0.3608]
[1731264244039,0.10565516,80901.0,80898.0,0.1145]
[1731264244241,0.061739,80901.0,80898.0,0.1145]
[1731264244641,0.3608,80904.0,80898.0,0.1145]
[1731264244843,0.061739,80901.0,80898.0,0.2352]
[1731264245042,0.061699,80901.0,80898.0,0.2352]
[1731264245347,0.06174,80899.0,80898.0,0.2352]
[1731264246145,0.06174,80899.0,80898.0,0.1145]
[1731264247254,0.04431453,80900.0,80899.0,0.06174]
[1731264247555,0.04431453,80903.0,80902.0,0.061738]
[1731264247755,0.10605153,80903.0,80898.0,0.176241]
[1731264248050,0.04431453,80903.0,80898.0,0.176241]
[1731264248549,0.061739,80901.0,80898.0,0.176241]
[1731264249147,0.061699,80901.0,80898.0,0.176241]
[1731264249352,0.06174,80899.0,80898.0,0.1145]
[1731264250248,0.10605453,80899.0,80898.0,0.1145]
[1731264250446,0.06174,80899.0,80898.0,0.1145]
[1731264250953,0.0617,80899.0,80898.0,0.1145]
[1731264251146,0.0617,80899.0,80897.0,0.0382381]
[1731264251352,0.10565516,80900.0,80889.0,0.1214]
[1731264251549,0.0617,80899.0,80889.0,0.1214]
[1731264251854,0.04431739,80903.0,80889.0,0.1214]
[1731264252053,0.061747,80890.0,80889.0,0.1214]
[1731264252550,0.04431739,80892.0,80889.0,0.1214]
[1731264252856,0.061746,80892.0,80889.0,0.1214]
[1731264253050,0.061747,80891.0,80889.0,0.1214]
[1731264253253,0.061707,80891.0,80889.0,0.1214]
[1731264254155,0.061667,80891.0,80889.0,0.1214]
[1731264255147,0.061627,80891.0,80889.0,0.1214]
[1731264255744,0.061747,80890.0,80888.0,0.03810443]
[1731264255949,0.061747,80890.0,80886.0,0.00012542]
[1731264255950,0.46725516,80893.0,80886.0,0.00012542]
[1731264256251,0.16736416,80887.0,80886.0,0.00012542]
[1731264256851,0.16736416,80887.0,80886.0,0.0383684]
[1731264257059,0.16732416,80887.0,80886.0,0.0383684]
[1731264257849,0.21160907,80887.0,80886.0,0.0383684]
[1731264258049,0.21160907,80887.0,80886.0,0.03452916]
[1731264258247,0.14998007,80887.0,80875.0,0.1215]
[1731264258452,0.04428491,80886.0,80875.0,0.1215]
[1731264258757,0.061752,80883.0,80879.0,0.40015663]
[1731264258955,0.061752,80883.0,80879.0,0.03935663]
[1731264259150,0.061752,80883.0,80876.0,0.3608]
[1731264259860,0.10565516,80887.0,80876.0,0.3608]
[1731264260157,0.10565516,80887.0,80876.0,0.422557]
[1731264260653,0.06175,80886.0,80876.0,0.422557]
[1731264260855,0.061752,80884.0,80876.0,0.422557]
[1731264261358,0.061747,80890.0,80883.0,0.3608]
[1731264261760,0.061707,80890.0,80883.0,0.3608]
[1731264262551,0.14364,80894.0,80883.0,0.3608]
[1731264262751,0.061709,80888.0,80883.0,0.3608]
[1731264263961,0.061669,80888.0,80883.0,0.3608]
[1731264264147,0.06175,80887.0,80883.0,0.3608]
[1731264264351,0.061751,80885.0,80883.0,0.3608]
[1731264264851,0.061711,80885.0,80883.0,0.3608]
[1731264265760,0.061671,80885.0,80883.0,0.3608]
[1731264266660,0.061631,80885.0,80883.0,0.3608]
[1731264267558,0.061591,80885.0,80883.0,0.3608]
[1731264268062,0.10565516,80895.0,80888.0,0.061748]
[1731264268559,0.061747,80890.0,80884.0,0.1165]
[1731264269064,0.061707,80890.0,80884.0,0.1165]
[1731264269266,0.061748,80889.0,80884.0,0.1165]
[1731264270059,0.061708,80889.0,80885.0,0.061751]
[1731264271467,0.04432121,80894.0,80884.0,0.15640574]
[1731264271662,0.06175,80886.0,80884.0,0.15640574]
[1731264272167,0.06175,80886.0,80884.0,0.03990574]
[1731264272368,0.06175,80886.0,80883.0,0.3608]
[1731264272560,0.06171,80886.0,80883.0,0.3608]
[1731264272961,0.06171,80886.0,80883.0,0.39910341]
[1731264273162,0.04432121,80888.0,80883.0,0.39910341]
[1731264273482,0.04432121,80888.0,80860.0,0.00010531]
[1731264273483,0.061769,80861.0,80860.0,0.00010531]
[1731264273674,0.42268038,80861.0,80860.0,0.00010531]
[1731264273860,0.57261601,80861.0,80860.0,0.00010531]
[1731264274269,0.061779,80848.0,80841.0,0.1181]
[1731264274466,0.51088701,80861.0,80841.0,0.1181]
[1731264274467,0.10565516,80855.0,80841.0,0.1181]
[1731264274667,0.061781,80846.0,80841.0,0.1181]
[1731264274971,0.061741,80846.0,80841.0,0.1181]
[1731264275572,0.061701,80846.0,80841.0,0.1181]
[1731264276168,0.3608,80854.0,80841.0,0.15705607]
[1731264276366,0.061784,80842.0,80841.0,0.15705607]
[1731264276963,0.061778,80849.0,80841.0,0.15705607]
[1731264277161,0.061738,80849.0,80848.0,0.3608]
[1731264277669,0.061698,80849.0,80848.0,0.3608]
[1731264278274,0.061658,80849.0,80848.0,0.3608]
[1731264278776,0.061618,80849.0,80848.0,0.3608]
[1731264279370,0.061578,80849.0,80848.0,0.3608]
[1731264279565,0.061538,80849.0,80848.0,0.3608]
[1731264279965,0.061498,80849.0,80848.0,0.3608]
[1731264280164,0.11961138,80861.0,80854.0,0.061774]
[1731264280165,0.061771,80859.0,80854.0,0.061774]
[1731264280377,0.00011138,80861.0,80849.0,0.1152]
[1731264280574,0.00011138,80861.0,80848.0,0.36144]
[1731264280771,0.00011138,80861.0,80848.0,0.3608]
[1731264280979,0.061774,80855.0,80848.0,0.3608]
[1731264281470,0.00011138,80861.0,80848.0,0.3608]
[1731264281977,0.10565516,80850.0,80848.0,0.3608]
[1731264282169,0.061778,80849.0,80848.0,0.3608]
[1731264282868,0.061779,80848.0,80844.0,0.3608]
[1731264284065,0.061775,80854.0,80844.0,0.3608]
[1731264284279,0.061776,80852.0,80844.0,0.3608]